fUST/lending_fUST_20240118
["ID","MTS","AMOUNT","RATE_DAILY","PERIOD"]
[312053523,1705584639168,-653.12504384,0.00030893,2]
[312053524,1705584639177,-492.737541,0.00030959,2]
[312053525,1705584639186,-150.5,0.00030969,30]
[312053526,1705584639196,-150.5,0.00030979,30]
[312053527,1705584639205,-150.5,0.00030989,30]
[312053528,1705584639214,-4068.92,0.00030999,2]
[312053529,1705584639224,-238.04250494,0.00031,2]
[312053530,1705584639235,-97008.73081987,0.00031,4]
[312053531,1705584639244,-1000.0,0.00031,31]
[312053532,1705584639253,-155.0,0.00031063,2]
[312053533,1705584639262,-12243.87665029,0.00031229,5]
[312053534,1705584639271,-653.12504384,0.00031698,2]
[312053535,1705584639280,-492.737541,0.00031781,2]
[312053536,1705584639290,-5000.0,0.00031837,7]
[312053537,1705584639299,-5000.0,0.00031852,7]
[312053538,1705584639310,-5000.0,0.00031895,7]
[312053539,1705584639320,-5000.0,0.00031923,7]
[312053540,1705584639329,-3279.57264357,0.00032,45]
[312053541,1705584639339,-1000.0,0.00032,32]
[312053542,1705584639348,-1400.0,0.00032,2]
[312053543,1705584639358,-150.0,0.00032,4]
[312053544,1705584639367,-620.00215074,0.00032089,2]
[312053545,1705584639377,-155.0,0.00032433,2]
[312053546,1705584639386,-457.13229339,0.00032499,2]
[312053547,1705584639397,-500.0,0.00032499,2]
[312053548,1705584639408,-495.66779193,0.00032499,2]
[312053549,1705584639417,-500.0,0.00032499,2]
[312053550,1705584639427,-500.0,0.00032499,2]
[312053551,1705584639437,-500.0,0.00032499,2]
[312053552,1705584639446,-500.0,0.00032499,2]
[312053553,1705584639457,-500.0,0.00032499,2]
[312053554,1705584639468,-568.44599173,0.00032499,2]
[312053555,1705584639477,-285.46773732,0.00032499,2]
[312053556,1705584639488,-500.0,0.00032499,2]
[312053557,1705584639498,-500.0,0.00032499,2]
[312053558,1705584639507,-500.0,0.00032499,2]
[312053559,1705584639516,-500.0,0.00032499,2]
[312053560,1705584639527,-500.0,0.00032499,2]
[312053561,1705584639538,-500.0,0.00032499,2]
[312053562,1705584639548,-500.0,0.00032499,2]
[312053563,1705584639558,-462.19067394,0.00032499,2]
[312053564,1705584639567,-500.0,0.00032499,2]
[312053565,1705584639576,-500.0,0.00032499,2]
[312053566,1705584639586,-500.0,0.00032499,2]
[312053567,1705584639595,-500.0,0.00032499,2]
[312053568,1705584639605,-500.0,0.00032499,2]
[312053569,1705584639614,-500.0,0.00032499,2]
[312053570,1705584639624,-500.0,0.00032499,2]
[312053571,1705584639633,-500.0,0.00032499,2]
[312053572,1705584639642,-500.0,0.00032499,2]
[312053573,1705584639651,-557.07298025,0.00032499,2]
[312053574,1705584639660,-500.0,0.00032499,2]
[312053575,1705584639669,-500.0,0.00032499,2]
[312053576,1705584639678,-500.0,0.00032499,2]
[312053577,1705584639687,-500.0,0.00032499,2]
[312053578,1705584639697,-500.0,0.00032499,2]
[312053579,1705584639707,-500.0,0.00032499,2]
[312053580,1705584639716,-300.0,0.00032499,2]
[312053581,1705584639725,-638.65720218,0.00032499,2]
[312053582,1705584639735,-159.66430054,0.00032499,2]
[312053583,1705584639744,-500.0,0.00032499,2]
[312053584,1705584639754,-500.0,0.00032499,2]
[312053585,1705584639763,-500.0,0.00032499,2]
[312053586,1705584639772,-500.0,0.00032499,2]
[312053587,1705584639781,-500.0,0.00032499,2]
[312053588,1705584639790,-500.0,0.00032499,2]
[312053589,1705584639799,-500.0,0.00032499,2]
[312053590,1705584639810,-500.0,0.00032499,2]
[312053591,1705584639819,-500.0,0.00032499,2]
[312053592,1705584639828,-500.0,0.00032499,2]
[312053593,1705584639838,-500.0,0.00032499,2]
[312053594,1705584639848,-500.0,0.00032499,2]
[312053595,1705584639859,-500.0,0.00032499,2]
[312053596,1705584639869,-500.0,0.00032499,2]
[312053597,1705584639878,-500.0,0.00032499,2]
[312053598,1705584639888,-500.0,0.00032499,2]
[312053599,1705584639898,-500.0,0.00032499,2]
[312053600,1705584639907,-500.0,0.00032499,2]
[312053601,1705584639916,-500.0,0.00032499,2]
[312053602,1705584639926,-273.71002545,0.00032499,2]
[312053603,1705584639938,-500.0,0.00032499,2]
[312053604,1705584639950,-500.0,0.00032499,2]
[312053605,1705584639959,-500.0,0.00032499,2]
[312053606,1705584639969,-500.0,0.00032499,2]
[312053607,1705584639978,-500.0,0.00032499,2]
[312053608,1705584639987,-500.0,0.00032499,2]
[312053609,1705584639997,-214.58776277,0.00032499,2]
[312053610,1705584640006,-500.0,0.00032499,2]
[312053611,1705584640015,-500.0,0.00032499,2]
[312053612,1705584640026,-500.0,0.00032499,2]
[312053613,1705584640035,-500.0,0.00032499,2]
[312053615,1705584640045,-500.0,0.00032499,2]
[312053616,1705584640056,-500.0,0.00032499,2]
[312053617,1705584640066,-521.48107639,0.00032499,2]
[312053618,1705584640075,-500.0,0.00032499,2]
[312053619,1705584640084,-500.0,0.00032499,2]
[312053620,1705584640094,-500.0,0.00032499,2]
[312053621,1705584640102,-500.0,0.00032499,2]
[312053622,1705584640111,-500.0,0.00032499,2]
[312053623,1705584640120,-500.0,0.00032499,2]
[312053624,1705584640129,-500.0,0.00032499,2]
[312053625,1705584640137,-247.33268724,0.00032499,2]
[312053626,1705584640147,-500.0,0.00032499,2]
[312053627,1705584640156,-216.0529508,0.00032499,2]
[312053629,1705584640166,-500.0,0.00032499,2]
[312053630,1705584640175,-500.0,0.00032499,2]
[312053631,1705584640184,-466.24688508,0.00032499,2]
[312053639,1705584640260,-500.0,0.00032499,2]
[312053640,1705584640270,-500.0,0.00032499,2]
[312053642,1705584640279,-500.0,0.00032499,2]
[312053644,1705584640288,-213.18966662,0.00032499,2]
[312053646,1705584640297,-395.17616583,0.00032499,2]
[312053647,1705584640308,-500.0,0.00032499,2]
[312053648,1705584640318,-500.0,0.00032499,2]
[312053649,1705584640327,-500.0,0.00032499,2]
[312053651,1705584640336,-500.0,0.00032499,2]
[312053652,1705584640345,-373.66634361,0.00032499,2]
[312053653,1705584640354,-500.0,0.00032499,2]
[312053654,1705584640363,-500.0,0.00032499,2]
[312053655,1705584640373,-500.0,0.00032499,2]
[312053656,1705584640383,-260.13136155,0.00032499,2]
[312053658,1705584640391,-574.99840531,0.00032499,2]
[312053660,1705584640401,-5810.39380457,0.00032499,2]
[312053661,1705584640410,-5810.39380457,0.00032499,2]
[312053663,1705584640420,-5810.39380457,0.00032499,2]
[312053665,1705584640429,-431.64543041,0.00032499,2]
[312053667,1705584640438,-500.0,0.00032499,2]
[312053668,1705584640447,-500.0,0.00032499,2]
[312053669,1705584640456,-160.0,0.00032499,2]
[312053670,1705584640465,-500.0,0.00032499,2]
[312053671,1705584640477,-445.15390292,0.00032499,2]
[312053672,1705584640487,-4068.92,0.00032499,2]
[312053673,1705584640496,-269636.92337064,0.000325,20]
[312053674,1705584640505,-653.12504384,0.00032503,2]
[312053675,1705584640516,-492.737541,0.00032603,2]
[312053676,1705584640525,-5000.0,0.00032632,7]
[312053677,1705584640536,-175.0415776,0.00032633,4]
[312053678,1705584640545,-154.98450155,0.00032633,4]
[312053679,1705584640556,-154.98450155,0.00032633,4]
[312053680,1705584640566,-322.87152922,0.00032633,4]
[312053681,1705584640575,-2573.23582321,0.00032633,4]
[312053682,1705584640584,-4136.96980501,0.00032633,2]
[312053683,1705584640593,-1577.62749715,0.00032633,4]
[312053684,1705584640603,-281.74832599,0.00032633,4]
[312053685,1705584640612,-1294.11270376,0.00032633,4]
[312053686,1705584640623,-6496.26070839,0.00032633,2]
[312053687,1705584640632,-155.18012841,0.00032633,4]
[312053688,1705584640642,-155.15668265,0.00032633,2]
[312053689,1705584640652,-250.96513424,0.00032633,4]
[312053690,1705584640661,-215.83906385,0.00032633,4]
[312053691,1705584640670,-155.33016045,0.00032633,4]
[312053692,1705584640679,-302.06716029,0.00032633,4]
[312053693,1705584640689,-257.69386047,0.00032633,4]
[312053694,1705584640699,-155.23624425,0.00032633,4]
[312053695,1705584640709,-1991.47489768,0.00032634,4]
[312053696,1705584640719,-500.0,0.00032639,4]
[312053697,1705584640728,-500.0,0.00032639,4]
[312053698,1705584640737,-462.84297544,0.00032639,4]
[312053699,1705584640747,-500.0,0.00032639,4]
[312053700,1705584640757,-500.0,0.00032639,4]
[312053701,1705584640768,-500.0,0.00032639,4]
[312053702,1705584640778,-500.0,0.00032639,4]
[312053703,1705584640787,-500.0,0.00032639,4]
[312053704,1705584640796,-498.23204235,0.00032639,4]
[312053705,1705584640807,-157.99895968,0.00032639,4]
[312053706,1705584640818,-500.0,0.00032639,4]
[312053707,1705584640827,-500.0,0.00032639,4]
[312053708,1705584640836,-500.0,0.00032639,4]
[312053709,1705584640846,-500.0,0.00032639,4]
[312053710,1705584640859,-500.0,0.00032639,4]
[312053711,1705584640868,-500.0,0.00032639,4]
[312053712,1705584640877,-543.30463467,0.00032639,4]
[312053713,1705584640888,-276.8318702,0.00032639,4]
[312053714,1705584640897,-500.0,0.00032639,4]
[312053715,1705584640907,-500.0,0.00032639,4]
[312053716,1705584640916,-500.0,0.00032639,4]
[312053717,1705584640925,-500.0,0.00032639,4]
[312053718,1705584640936,-500.0,0.00032639,4]
[312053719,1705584640945,-500.0,0.00032639,4]
[312053720,1705584640954,-500.0,0.00032639,4]
[312053721,1705584640963,-500.0,0.00032639,4]
[312053722,1705584640972,-500.0,0.00032639,4]
[312053723,1705584640981,-500.0,0.00032639,4]
[312053724,1705584640990,-500.0,0.00032639,4]
[312053725,1705584641000,-500.0,0.00032639,4]
[312053727,1705584641009,-546.87692344,0.00032639,4]
[312053729,1705584641018,-500.0,0.00032639,4]
[312053731,1705584641028,-500.0,0.00032639,4]
[312053733,1705584641037,-500.0,0.00032639,4]
[312053734,1705584641046,-500.0,0.00032639,4]
[312053736,1705584641057,-500.0,0.00032639,4]
[312053738,1705584641069,-190.142785,0.000327,5]
[312053740,1705584641078,-242.743,0.00032725,2]
[312053742,1705584641087,-150.5,0.0003275,30]
[312053743,1705584641097,-150.5,0.0003276,30]
[312053744,1705584641106,-154.98450155,0.00032766,4]
[312053745,1705584641116,-150.5,0.0003277,30]
[312053746,1705584641125,-276000.0,0.00032771,2]
[312053747,1705584641133,-151.0,0.00032771,2]
[312053748,1705584641142,-151.0,0.00032771,2]
[312053749,1705584641151,-151.0,0.00032771,2]
[312053750,1705584641160,-35723.09059845,0.00032773,3]
[312053751,1705584641170,-1273.45080855,0.00032863,2]
[312053752,1705584641179,-19680.32630382,0.00032871,4]
[312053753,1705584641188,-154.98450155,0.00032871,4]
[312053754,1705584641197,-154.98450155,0.00032872,4]
[312053755,1705584641206,-410.41281499,0.00032873,4]
[312053756,1705584641215,-4319.3054765,0.00032873,4]
[312053757,1705584641224,-351.14579978,0.00032873,4]
[312053758,1705584641233,-157.11446676,0.00032873,4]
[312053759,1705584641242,-182.50978617,0.00032873,4]
[312053760,1705584641251,-3215.01498963,0.00032873,4]
[312053761,1705584641260,-2082.71954556,0.00032873,4]
[312053762,1705584641270,-309.89153874,0.00032873,4]
[312053763,1705584641279,-229.9277877,0.00032873,4]
[312053764,1705584641288,-283.01176432,0.00032873,3]
[312053765,1705584641298,-154.95351395,0.00032873,2]
[312053766,1705584641308,-650.89335401,0.00032873,4]
[312053767,1705584641317,-195.1690538,0.00032873,4]
[312053768,1705584641326,-165.59815637,0.00032873,4]
[312053769,1705584641336,-228.08064136,0.00032873,4]
[312053770,1705584641346,-1824.64474457,0.00032873,2]
[312053771,1705584641355,-274.27937603,0.00032876,7]
[312053772,1705584641365,-212.42905368,0.00032876,7]
[312053773,1705584641374,-500.0,0.00032876,7]
[312053774,1705584641383,-500.0,0.00032876,7]
[312053775,1705584641393,-500.0,0.00032876,7]
[312053776,1705584641402,-589.10080299,0.00032876,7]
[312053777,1705584641411,-500.0,0.00032876,7]
[312053778,1705584641422,-301.3344938,0.00032876,7]
[312053779,1705584641430,-500.0,0.00032876,7]
[312053780,1705584641440,-500.0,0.00032876,7]
[312053781,1705584641451,-500.0,0.00032876,7]
[312053782,1705584641462,-500.0,0.00032876,7]
[312053783,1705584641471,-500.0,0.00032876,7]
[312053784,1705584641481,-500.0,0.00032876,7]
[312053785,1705584641491,-500.0,0.00032876,7]
[312053786,1705584641500,-500.0,0.00032876,7]
[312053787,1705584641510,-500.0,0.00032876,7]
[312053788,1705584641521,-292.80473519,0.00032876,7]
[312053789,1705584641530,-500.0,0.00032876,7]
[312053790,1705584641540,-500.0,0.00032876,7]
[312053791,1705584641551,-500.0,0.00032876,7]
[312053792,1705584641621,-500.0,0.00032876,7]
[312053793,1705584641631,-500.0,0.00032876,7]
[312053794,1705584641640,-600.0,0.00032876,7]
[312053795,1705584641649,-478.99290164,0.00032876,7]
[312053796,1705584641659,-500.0,0.00032876,7]
[312053797,1705584641667,-500.0,0.00032876,7]
[312053798,1705584641677,-500.0,0.00032876,7]
[312053799,1705584641686,-500.0,0.00032876,7]
[312053800,1705584641695,-500.0,0.00032876,7]
[312053801,1705584641704,-500.0,0.00032876,7]
[312053802,1705584641713,-410.94082208,0.00032876,7]
[312053803,1705584641722,-500.0,0.00032876,7]
[312053804,1705584641730,-500.0,0.00032876,7]
[312053805,1705584641739,-500.0,0.00032876,7]
[312053806,1705584641748,-330.28251909,0.00032876,7]
[312053807,1705584641757,-500.0,0.00032876,7]
[312053808,1705584641767,-500.0,0.00032876,7]
[312053809,1705584641776,-500.0,0.00032876,7]
[312053810,1705584641785,-500.0,0.00032876,7]
[312053811,1705584641794,-500.0,0.00032876,7]
[312053812,1705584641803,-449.37032761,0.00032876,7]
[312053813,1705584641812,-500.0,0.00032876,7]
[312053814,1705584641822,-500.0,0.00032876,7]
[312053815,1705584641831,-500.0,0.00032876,7]
[312053816,1705584641840,-500.0,0.00032876,7]
[312053817,1705584641852,-500.0,0.00032876,7]
[312053818,1705584641862,-500.0,0.00032876,7]
[312053819,1705584641871,-500.0,0.00032876,7]
[312053820,1705584641880,-266.11080729,0.00032876,7]
[312053821,1705584641890,-500.0,0.00032876,7]
[312053822,1705584641900,-560.49951543,0.00032876,7]
[312053823,1705584641909,-537.0397131,0.00032876,7]
[312053824,1705584641918,-500.0,0.00032876,7]
[312053825,1705584641929,-379.74813105,0.00032876,7]
[312053826,1705584641940,-500.0,0.00032876,7]
[312053827,1705584641949,-500.0,0.00032876,7]
[312053828,1705584641958,-500.0,0.00032876,7]
[312053829,1705584641968,-171.38212437,0.00032876,7]
[312053830,1705584641977,-500.0,0.00032876,7]
[312053831,1705584641987,-500.0,0.00032876,7]
[312053832,1705584642027,-409.89224996,0.00032876,7]
[312053833,1705584642036,-500.0,0.00032876,7]
[312053834,1705584642046,-320.09852116,0.00032876,7]
[312053835,1705584642056,-500.0,0.00032876,7]
[312053836,1705584642065,-344.99904319,0.00032876,7]
[312053837,1705584642075,-258.98725825,0.00032876,7]
[312053838,1705584642084,-500.0,0.00032876,7]
[312053839,1705584642093,-370.0,0.00032876,7]
[312053840,1705584642102,-300.0,0.00032876,7]
[312053841,1705584642111,-950.0,0.00032876,2]
[312053842,1705584642120,-165.90071,0.00032877,2]
[312053843,1705584642129,-199.7912158,0.00032877,2]
[312053844,1705584642138,-500.0,0.00032999,7]
[312053845,1705584642147,-500.0,0.00032999,7]
[312053846,1705584642156,-500.0,0.00032999,7]
[312053847,1705584642166,-500.0,0.00032999,7]
[312053848,1705584642175,-394.79937581,0.00032999,7]
[312053849,1705584642184,-500.0,0.00032999,7]
[312053850,1705584642194,-248.67403176,0.00032999,7]
[312053851,1705584642203,-500.0,0.00032999,7]
[312053852,1705584642213,-500.0,0.00032999,7]
[312053853,1705584642222,-500.0,0.00032999,7]
[312053854,1705584642231,-500.0,0.00032999,7]
[312053855,1705584642240,-500.0,0.00032999,7]
[312053856,1705584642249,-500.0,0.00032999,7]
[312053857,1705584642258,-457.62390265,0.00032999,7]
[312053858,1705584642268,-407.478476,0.00032999,7]
[312053859,1705584642277,-500.0,0.00032999,7]
[312053860,1705584642287,-500.0,0.00032999,7]
[312053861,1705584642296,-500.0,0.00032999,7]
[312053862,1705584642306,-500.0,0.00032999,7]
[312053863,1705584642315,-500.0,0.00032999,7]
[312053864,1705584642324,-500.0,0.00032999,7]
[312053865,1705584642334,-500.0,0.00032999,7]
[312053866,1705584642344,-500.0,0.00032999,7]
[312053867,1705584642354,-500.0,0.00032999,7]
[312053868,1705584642363,-500.0,0.00032999,7]
[312053869,1705584642374,-535.15769258,0.00032999,7]
[312053870,1705584642383,-500.0,0.00032999,7]
[312053871,1705584642392,-1000.0,0.00033,33]
[312053872,1705584642402,-171.0,0.00033,2]
[312053873,1705584642411,-262.0,0.00033,2]
[312053874,1705584642420,-153.29820472,0.00033082,7]
[312053875,1705584642430,-5000.0,0.0003312,7]
[312053876,1705584642439,-5000.0,0.0003313,7]
[312053877,1705584642450,-200.0,0.00033131,15]
[312053878,1705584642460,-200.0,0.00033131,15]
[312053879,1705584642470,-200.0,0.00033131,15]
[312053880,1705584642480,-200.0,0.00033131,15]
[312053881,1705584642489,-5000.0,0.00033143,7]
[312053882,1705584642499,-950.0,0.0003315,2]
[312053883,1705584642508,-5000.0,0.00033157,7]
[312053884,1705584642518,-5000.0,0.00033171,7]
[312053885,1705584642528,-152.3738518,0.00033171,7]
[312053886,1705584642537,-153.29820472,0.00033172,7]
[312053887,1705584642547,-151.0,0.00033246,2]
[312053888,1705584642557,-8687.69397933,0.00033269,7]
[312053889,1705584642566,-152.3738518,0.00033323,7]
[312053890,1705584642576,-152.3738518,0.00033329,7]
[312053891,1705584642584,-950.0,0.00033424,2]
[312053893,1705584642594,-492.737541,0.00033425,2]
[312053895,1705584642603,-152.3738518,0.0003348,7]
[312053896,1705584642613,-1000.0,0.00033516,10]
[312053897,1705584642622,-152.3738518,0.00033572,7]
[312053898,1705584642631,-152.3738518,0.00033582,7]
[312053899,1705584642640,-5000.0,0.00033639,7]
[312053900,1705584642650,-152.3738518,0.00033679,7]
[312053901,1705584642659,-620.00010754,0.00033694,2]
[312053902,1705584642668,-950.0,0.00033698,2]
[312053903,1705584642677,-155.0,0.00033803,2]
[312053904,1705584642686,-152.3738518,0.00033804,7]
[312053905,1705584642696,-950.0,0.00033972,2]
[312053907,1705584642704,-172.234711,0.00033973,2]
[312053908,1705584642713,-152.3738518,0.00033984,7]
[312053909,1705584642723,-151.0,0.00033993,2]
[312053910,1705584642732,-1000.0,0.00034,7]
[312053911,1705584642741,-263.13,0.00034,10]
[312053912,1705584642750,-25153.93120552,0.00034,2]
[312053914,1705584642759,-1000.0,0.00034,34]
[312053915,1705584642769,-1500.0,0.00034,2]
[312053916,1705584642779,-2000.0,0.00034029,2]
[312053917,1705584642788,-152.3738518,0.00034051,7]
[312053918,1705584642797,-950.0,0.00034246,2]
[312053919,1705584642808,-492.737541,0.00034247,2]
[312053921,1705584642817,-152.3738518,0.00034488,7]
[312053922,1705584642884,-8989.6388019,0.000345,7]
[312053924,1705584642894,-153.29820472,0.00034501,7]
[312053926,1705584642903,-950.0,0.0003452,2]
[312053927,1705584642914,-151.0,0.0003474,2]
[312053928,1705584642923,-950.0,0.00034794,2]
[312053929,1705584642936,-153.29820472,0.00034954,7]
[312053930,1705584642946,-430.86875032,0.0003499,6]
[312053931,1705584642955,-1973.02169883,0.00035,7]
[312053932,1705584642965,-2947.56243356,0.00035,15]
[312053933,1705584642974,-155.74214804,0.00035,4]
[312053934,1705584642984,-11157.84737616,0.00035,4]
[312053936,1705584642993,-6760.97413379,0.00035,4]
[312053938,1705584643003,-1104.18339118,0.00035,14]
[312053939,1705584643012,-591.69239792,0.00035,2]
[312053941,1705584643021,-475.72668137,0.00035,4]
[312053942,1705584643031,-75851.36457803,0.00035,15]
[312053943,1705584643041,-2154.69422144,0.00035,4]
[312053945,1705584643050,-156.26613286,0.00035,6]
[312053947,1705584643061,-1004.53357033,0.00035,7]
[312053948,1705584643071,-563.33668439,0.00035,2]
[312053949,1705584643080,-20000.0,0.00035,3]
[312053950,1705584643090,-30811.01965048,0.00035,2]
[312053951,1705584643099,-1022.37657298,0.00035,10]
[312053952,1705584643108,-1000.0,0.00035,35]
[312053953,1705584643117,-3850.000001,0.00035,17]
[312053954,1705584643127,-266.666712,0.00035,2]
[312053955,1705584643135,-151.0,0.00035,2]
[312053956,1705584643144,-151.0,0.00035,2]
[312053957,1705584643154,-151.0,0.00035,2]
[312053958,1705584643163,-991.54775,0.00035,2]
[312053959,1705584643173,-991.54775,0.00035,2]
[312053960,1705584643183,-151.0,0.00035,2]
[312053961,1705584643192,-500.0,0.00035,3]
[312053962,1705584643202,-201.93942625,0.00035,2]
[312053963,1705584643211,-153.756851,0.00035,2]
[312053964,1705584643222,-153.083675,0.00035,2]
[312053965,1705584643231,-1500.0,0.00035,2]
[312053966,1705584643240,-245.009401,0.00035,8]
[312053967,1705584643251,-1886.138911,0.00035,2]
[312053968,1705584643261,-1886.138911,0.00035,2]
[312053969,1705584643271,-151.0,0.00035,2]
[312053970,1705584643281,-218.821974,0.00035,2]
[312053971,1705584643290,-5000.0,0.00035034,7]
[312053972,1705584643299,-950.0,0.00035068,2]
[312053973,1705584643310,-492.737541,0.00035068,2]
[312053974,1705584643320,-155.0,0.00035173,2]
[312053975,1705584643330,-152.3738518,0.00035185,7]
[312053976,1705584643339,-150.0,0.00035326,2]
[312053977,1705584643349,-950.0,0.00035342,2]
[312053978,1705584643359,-153.29820472,0.0003537,7]
[312053979,1705584643368,-194.156522,0.00035385,2]
[312053980,1705584643378,-238.844443,0.00035385,2]
[312053981,1705584643388,-159.22963,0.00035385,2]
[312053982,1705584643398,-194.156522,0.00035385,2]
[312053983,1705584643408,-151.0,0.00035487,4]
[312053984,1705584643418,-3463.55580107,0.00035536,2]
[312053985,1705584643427,-265.24894371,0.00035616,2]
[312053986,1705584643436,-500.0,0.00035616,2]
[312053987,1705584643446,-500.0,0.00035616,2]
[312053988,1705584643455,-500.0,0.00035616,2]
[312053989,1705584643464,-500.0,0.00035616,2]
[312053990,1705584643475,-500.0,0.00035616,2]
[312053991,1705584643485,-500.0,0.00035616,2]
[312053992,1705584643495,-500.0,0.00035616,2]
[312053993,1705584643505,-500.0,0.00035616,2]
[312053994,1705584643514,-500.0,0.00035616,2]
[312053995,1705584643523,-500.0,0.00035616,2]
[312053996,1705584643533,-500.0,0.00035616,2]
[312053997,1705584643542,-500.0,0.00035616,2]
[312053998,1705584643552,-500.0,0.00035616,2]
[312053999,1705584643562,-500.0,0.00035616,2]
[312054000,1705584643572,-500.0,0.00035616,2]
[312054001,1705584643581,-500.0,0.00035616,2]
[312054002,1705584643591,-950.0,0.00035616,2]
[312054003,1705584643601,-150.95004265,0.00035616,7]
[312054004,1705584643610,-1612.398478,0.00035616,120]
[312054005,1705584643619,-201.93942625,0.000357,2]
[312054006,1705584643629,-500.0,0.0003576,2]
[312054007,1705584643639,-500.0,0.0003576,2]
[312054008,1705584643650,-500.0,0.0003576,2]
[312054009,1705584643659,-500.0,0.0003576,2]
[312054010,1705584643668,-500.0,0.0003576,2]
[312054011,1705584643677,-950.0,0.0003589,2]
[312054012,1705584643686,-492.737541,0.0003589,2]
[312054013,1705584643696,-199.037036,0.00035947,2]
[312054014,1705584643705,-180.05543,0.00035947,2]
[312054015,1705584643714,-176.718193,0.00035947,2]
[312054016,1705584643723,-199.037037,0.00035947,2]
[312054017,1705584643734,-194.156523,0.00035947,2]
[312054018,1705584643743,-199.037036,0.00035947,2]
[312054019,1705584643753,-11000.0,0.00036,20]
[312054020,1705584643764,-1000.0,0.00036,36]
[312054021,1705584643773,-262.0,0.00036,2]
[312054022,1705584643783,-152.3738518,0.00036133,7]
[312054023,1705584643792,-950.0,0.00036164,2]
[312054024,1705584643802,-151.0,0.00036233,4]
[312054025,1705584643812,-253.71495932,0.0003624,2]
[312054026,1705584643821,-153.29820472,0.00036328,7]
[312054027,1705584643830,-201.93942625,0.000364,2]
[312054028,1705584643841,-950.0,0.00036438,2]
[312054029,1705584643851,-152.3738518,0.00036521,7]
[312054030,1705584643861,-155.0,0.00036543,2]
[312054031,1705584643871,-176.718193,0.00036546,2]
[312054032,1705584643880,-950.0,0.00036712,2]
[312054033,1705584643890,-492.737541,0.00036712,2]
[312054034,1705584643902,-5000.0,0.00036723,2]
[312054035,1705584643911,-164.6,0.00036789,30]
[312054036,1705584643920,-896.80684674,0.00036796,4]
[312054037,1705584643932,-224.27867122,0.00036796,4]
[312054038,1705584643944,-4170.85398458,0.00036797,4]
[312054039,1705584643955,-251.08715665,0.00036798,2]
[312054040,1705584643964,-446540.28117422,0.000368,10]
[312054041,1705584643973,-202.3142506,0.000368,4]
[312054042,1705584643983,-214.43562785,0.000368,4]
[312054043,1705584643993,-432.34366374,0.000368,7]
[312054044,1705584644002,-668.86256269,0.000368,10]
[312054045,1705584644069,-270.6443455,0.000368,7]
[312054046,1705584644079,-272.74221748,0.000368,10]
[312054047,1705584644089,-219.77894514,0.000368,4]
[312054048,1705584644098,-5000.0,0.000368,7]
[312054049,1705584644107,-1777.09569341,0.000368,10]
[312054050,1705584644116,-151.0,0.000368,2]
[312054051,1705584644125,-151.0,0.000368,2]
[312054052,1705584644134,-4948.15682254,0.000368,7]
[312054053,1705584644143,-151.0,0.000368,2]
[312054054,1705584644152,-769.06036426,0.000368,10]
[312054055,1705584644161,-991.54775,0.000368,2]
[312054056,1705584644171,-991.54775,0.000368,2]
[312054057,1705584644180,-151.0,0.000368,2]
[312054058,1705584644191,-506.61286879,0.000368,7]
[312054059,1705584644200,-647.4135616,0.000368,10]
[312054060,1705584644210,-1886.138911,0.000368,2]